fUSD/lending_fUSD_20241110
["ID","MTS","AMOUNT","RATE_DAILY","PERIOD"]
[341897937,1731274232936,-250.0,0.00013046,2]
[341897939,1731274232944,-614.31,0.00013046,2]
[341897941,1731274232953,-4549.03,0.00013046,2]
[341897942,1731274232962,-940.87,0.00013046,2]
[341897944,1731274232971,-155.45,0.00013048,2]
[341897946,1731274232980,-169.17,0.00013053,2]
[341897948,1731274232989,-155.45,0.00013056,2]
[341897950,1731274232998,-155.45,0.00013064,2]
[341897952,1731274233007,-524.75,0.0001307,2]
[341897954,1731274233016,-155.45,0.00013072,2]
[341897956,1731274233025,-200.0,0.00013076,2]
[341897958,1731274233034,-155.45,0.0001308,2]
[341897960,1731274233044,-2033.19,0.00013084,2]
[341897962,1731274233053,-155.45,0.00013089,2]
[341897964,1731274233062,-470.21,0.00013091,2]
[341897966,1731274233071,-582.4287894,0.00013093,2]
[341897968,1731274233080,-155.45,0.00013097,2]
[341897970,1731274233089,-500.0,0.00013101,2]
[341897972,1731274233098,-500.0,0.00013101,2]
[341897974,1731274233107,-500.0,0.00013101,2]
[341897976,1731274233117,-379.34815612,0.00013101,2]
[341897978,1731274233125,-348.80287373,0.00013101,2]
[341897980,1731274233136,-500.0,0.00013101,2]
[341897982,1731274233145,-424.98349481,0.00013101,2]
[341897984,1731274233155,-911.92,0.00013102,2]
[341897986,1731274233164,-155.45,0.00013105,2]
[341897988,1731274233173,-155.45,0.00013113,2]
[341897990,1731274233182,-155.45,0.00013121,2]
[341897992,1731274233191,-1944.05,0.00013128,2]
[341897994,1731274233200,-155.45,0.00013129,2]
[341897996,1731274233209,-155.45,0.00013138,2]
[341897998,1731274233218,-155.45,0.00013146,2]
[341898000,1731274233227,-155.45,0.00013154,2]
[341898002,1731274233236,-155.45,0.00013162,2]
[341898004,1731274233245,-155.45,0.0001317,2]
[341898006,1731274233255,-185.11,0.00013175,2]
[341898008,1731274233264,-155.45,0.00013178,2]
[341898010,1731274233273,-6068.1438421,0.00013191,2]
[341898012,1731274233283,-1963.06,0.00013201,2]
[341898014,1731274233292,-405.36,0.00013207,2]
[341898016,1731274233301,-1000.0,0.00013224,2]
[341898018,1731274233310,-150.0,0.00013224,2]
[341898020,1731274233319,-1852.42,0.00013312,2]
[341898022,1731274233329,-165.09,0.0001341,2]
[341898024,1731274233338,-563.11,0.00013424,2]
[341898026,1731274233347,-1840.99,0.00013435,2]
[341898028,1731274233356,-42797.73214454,0.0001348,2]
[341898030,1731274233365,-8500.0,0.000136,2]
[341898032,1731274233374,-200.0,0.00013699,2]
[341898034,1731274233384,-255.0,0.00013732,2]
[341898036,1731274233401,-150.0,0.00013799,2]
[341898038,1731274233410,-150.03,0.0001393,2]
[341898040,1731274233419,-150.03,0.00013948,2]
[341898042,1731274233429,-150.03,0.00013965,2]
[341898044,1731274233441,-150.03,0.00013983,2]
[341898046,1731274233450,-150.03,0.00014,2]
[341898048,1731274233459,-150.03,0.00014017,2]
[341898050,1731274233468,-150.03,0.00014035,2]
[341898052,1731274233479,-150.03,0.00014052,2]
[341898053,1731274233488,-563.11,0.00014064,2]
[341898055,1731274233498,-150.03,0.0001407,2]
[341898057,1731274233508,-11060.59230967,0.000145,3]
[341898059,1731274233517,-10698.4567,0.0001455,2]
[341898061,1731274233527,-37403.0,0.00014554,2]
[341898063,1731274233537,-32022.0063,0.0001465,2]
[341898065,1731274233546,-1000.0,0.00014687,2]
[341898067,1731274233556,-485.5441679,0.00014695,2]
[341898069,1731274233566,-4883.8812,0.00014697,2]
[341898070,1731274233576,-563.11,0.00014703,2]
[341898072,1731274233585,-2910.0,0.00014723,2]
[341898073,1731274233595,-13614.0,0.00014723,2]
[341898074,1731274233605,-150.0,0.00014723,2]
[341898075,1731274233615,-485.5441679,0.00014724,2]
[341898076,1731274233625,-500.0,0.00014724,2]
[341898077,1731274233635,-500.0,0.00014724,2]
[341898078,1731274233644,-590.56,0.00014724,2]
[341898079,1731274233653,-14556.26,0.00014724,2]
[341898080,1731274233662,-507.79,0.00014724,2]
[341898081,1731274233672,-500.0,0.00014724,2]
[341898082,1731274233681,-500.0,0.00014724,2]
[341898083,1731274233690,-500.0,0.00014724,2]
[341898084,1731274233699,-500.0,0.00014724,2]
[341898085,1731274233709,-299.51860027,0.00014724,2]
[341898086,1731274233732,-1567.61139973,0.00014724,2]
[341898087,1731274233741,-500.0,0.00014724,2]
[341898088,1731274233751,-11053.11,0.00014724,2]
[341898089,1731274233760,-732.85,0.00014724,2]
[341898090,1731274233770,-500.0,0.00014724,2]
[341898091,1731274233779,-500.0,0.00014724,2]
[341898092,1731274233788,-500.0,0.00014724,2]
[341898093,1731274233798,-500.0,0.00014724,2]
[341898094,1731274233807,-1116.98,0.00014724,2]
[341898095,1731274233816,-500.0,0.00014724,2]
[341898096,1731274233826,-565.51,0.00014724,2]
[341898097,1731274233836,-2021.85,0.00014724,2]
[341898098,1731274233845,-500.0,0.00014724,2]
[341898099,1731274233854,-601.01,0.00014724,2]
[341898100,1731274233863,-538.96,0.00014724,2]
[341898101,1731274233872,-1133.57,0.00014724,2]
[341898102,1731274233881,-1045.65886551,0.00014725,2]
[341898103,1731274233893,-5347.16080006,0.00014725,2]
[341898104,1731274233910,-2421.26105739,0.00014725,2]
[341898105,1731274233921,-393.285,0.00014725,2]
[341898106,1731274233932,-2375.16069498,0.00014725,2]
[341898107,1731274233944,-3094.2,0.00014725,2]
[341898108,1731274233955,-6023.72737881,0.00014725,2]
[341898109,1731274233967,-6674.23832769,0.00014725,2]
[341898110,1731274233977,-3672.96078385,0.00014725,2]
[341898111,1731274233989,-714.29364426,0.00014725,2]
[341898112,1731274233999,-4240.0935,0.0001475,2]
[341898113,1731274234011,-485.5441679,0.00014752,2]
[341898114,1731274234020,-804.55220797,0.00014753,2]
[341898115,1731274234039,-171.87309203,0.00014753,2]
[341898116,1731274234049,-217.01440934,0.00014758,2]
[341898119,1731274238245,-90.64895735,0.00014758,2]
[341898120,1731274238256,-485.5441679,0.00014781,2]
[341898122,1731274238266,-172.02,0.00014785,3]
[341898123,1731274238276,-344.55582749,0.00014794,2]
[341898124,1731274238285,-500.0,0.00014794,2]
[341898126,1731274238295,-500.0,0.00014794,2]
[341898127,1731274238556,-161.38230662,0.00014794,2]
[341898128,1731274238567,-500.0,0.00014794,2]
[341898129,1731274238577,-500.0,0.00014794,2]
[341898130,1731274238586,-500.0,0.00014794,2]
[341898131,1731274238595,-500.0,0.00014794,2]
[341898132,1731274238605,-500.0,0.00014794,2]
[341898133,1731274238614,-500.0,0.00014794,2]
[341898134,1731274238623,-500.0,0.00014794,2]
[341898135,1731274238634,-500.0,0.00014794,2]
[341898136,1731274238644,-500.0,0.00014794,2]
[341898137,1731274238653,-390.0,0.00014794,2]
[341898138,1731274238662,-500.0,0.00014794,2]
[341898139,1731274238671,-500.0,0.00014794,2]
[341898140,1731274238681,-500.0,0.00014794,2]
[341898141,1731274238690,-611.04,0.00014794,2]
[341898142,1731274238700,-500.0,0.00014794,2]
[341898143,1731274238710,-500.0,0.00014795,2]
[341898144,1731274238720,-4130.34068359,0.00014795,2]
[341898145,1731274238819,-1279.44401154,0.00014795,2]
[341898146,1731274238844,-787.96624107,0.00014795,2]
[341898147,1731274238854,-500.0,0.00014795,2]
[341898148,1731274238864,-500.0,0.00014795,2]
[341898149,1731274238873,-500.0,0.00014795,2]
[341898150,1731274238886,-500.0,0.00014795,2]
[341898152,1731274238897,-500.0,0.00014795,2]
[341898154,1731274238907,-690.34,0.00014795,2]
[341898156,1731274238917,-1020.52,0.00014795,2]
[341898157,1731274238927,-1601.37,0.00014795,2]
[341898158,1731274238936,-719.69,0.00014795,2]
[341898159,1731274238946,-500.0,0.00014795,2]
[341898160,1731274238956,-546.64,0.00014795,2]
[341898161,1731274238965,-919.75,0.00014795,2]
[341898163,1731274238976,-500.0,0.00014795,2]
[341898165,1731274238985,-500.0,0.00014795,2]
[341898167,1731274238994,-1886.2,0.00014795,2]
[341898169,1731274239004,-700.69,0.00014795,2]
[341898170,1731274239014,-500.0,0.00014795,2]
[341898171,1731274239023,-500.0,0.00014795,2]
[341898172,1731274239033,-2098.83,0.00014795,2]
[341898173,1731274239042,-730.53,0.00014795,2]
[341898174,1731274239052,-161.931501,0.00014795,2]
[341898176,1731274239061,-157.950212,0.00014795,2]
[341898178,1731274239071,-571.86,0.00014795,2]
[341898179,1731274239081,-153.1758,0.00014795,2]
[341898181,1731274239091,-500.0,0.00014795,2]
[341898183,1731274239100,-1270.4,0.00014795,2]
[341898184,1731274239110,-500.0,0.00014795,2]
[341898186,1731274239118,-12011.77,0.00014795,2]
[341898187,1731274239128,-196.641736,0.00014795,2]
[341898189,1731274239143,-500.0,0.00014795,2]
[341898190,1731274239152,-500.0,0.00014795,2]
[341898192,1731274239162,-574.25,0.00014795,2]
[341898194,1731274239172,-679.32,0.00014795,2]
[341898195,1731274239181,-1899.44,0.00014795,2]
[341898196,1731274239191,-500.0,0.00014795,2]
[341898197,1731274239200,-15147.79,0.00014795,2]
[341898198,1731274239209,-1928.88,0.00014795,2]
[341898199,1731274239218,-975.3202416,0.00014795,2]
[341898200,1731274239227,-2205.21,0.00014795,2]
[341898201,1731274239236,-829.53,0.00014795,2]
[341898202,1731274239245,-1757.77,0.00014795,2]
[341898203,1731274239254,-1109.41,0.00014795,2]
[341898204,1731274239263,-15170.98,0.00014795,2]
[341898205,1731274239273,-500.0,0.00014795,2]
[341898206,1731274239282,-500.0,0.00014795,2]
[341898207,1731274239291,-944.72,0.00014795,2]
[341898208,1731274239301,-500.0,0.00014795,2]
[341898209,1731274239310,-2401.88,0.00014795,2]
[341898210,1731274239318,-1332.9,0.00014795,2]
[341898211,1731274239325,-1274.7,0.00014795,2]
[341898212,1731274239333,-9383.32,0.00014795,2]
[341898213,1731274239340,-500.0,0.00014795,2]
[341898214,1731274239347,-902.51,0.00014795,2]
[341898215,1731274239356,-500.0,0.00014795,2]
[341898216,1731274239365,-14779.26,0.00014795,2]
[341898217,1731274239375,-500.0,0.00014795,2]
[341898218,1731274239387,-500.0,0.00014795,2]
[341898219,1731274239398,-15358.46,0.00014795,2]
[341898220,1731274239411,-1051.67,0.00014795,2]
[341898221,1731274239420,-2193.42,0.00014795,2]
[341898222,1731274239430,-8862.6,0.00014795,2]
[341898223,1731274239439,-1662.72,0.00014795,2]
[341898224,1731274239450,-500.0,0.00014795,2]
[341898225,1731274239459,-8409.67,0.00014795,2]
[341898226,1731274239469,-1107.14,0.00014795,2]
[341898227,1731274239480,-500.0,0.00014795,2]
[341898228,1731274239490,-2084.28,0.00014795,2]
[341898229,1731274239500,-392.25735128,0.00014795,2]
[341898230,1731274239509,-3473.68,0.00014795,2]
[341898231,1731274239518,-3696.69,0.00014795,2]
[341898232,1731274239528,-500.0,0.00014795,2]
[341898233,1731274239537,-9547.03,0.00014795,2]
[341898234,1731274239547,-500.0,0.00014795,2]
[341898235,1731274239557,-920.46,0.00014795,2]
[341898236,1731274239566,-500.0,0.00014795,2]
[341898237,1731274239575,-3567.32,0.00014795,2]
[341898238,1731274239585,-582.3,0.00014795,2]
[341898239,1731274239594,-2114.17,0.00014795,2]
[341898240,1731274239603,-358.64996893,0.00014795,2]
[341898241,1731274239612,-500.0,0.00014795,2]
[341898242,1731274239621,-5124.15,0.00014795,2]
[341898243,1731274239630,-559.23,0.00014795,2]
[341898244,1731274239643,-500.0,0.00014795,2]
[341898245,1731274239652,-500.0,0.00014795,2]
[341898246,1731274239661,-500.0,0.00014795,2]
[341898247,1731274239671,-3595.52,0.00014795,2]
[341898248,1731274239680,-611.04,0.00014795,2]
[341898249,1731274239689,-500.0,0.00014795,2]
[341898250,1731274239698,-1946.53,0.00014795,2]
[341898251,1731274239708,-771.02,0.00014795,2]
[341898252,1731274239717,-2947.13,0.00014795,2]
[341898253,1731274239727,-1177.51,0.00014796,2]
[341898254,1731274239744,-500.0,0.00014796,2]
[341898255,1731274239756,-500.0,0.00014796,2]
[341898256,1731274239765,-500.0,0.00014796,2]
[341898257,1731274239776,-500.0,0.00014796,2]
[341898258,1731274239786,-500.0,0.00014796,2]
[341898259,1731274239796,-642.23,0.00014796,2]
[341898260,1731274239806,-1382.45,0.00014796,2]
[341898261,1731274239816,-1842.66,0.00014796,2]
[341898262,1731274239825,-500.0,0.00014796,2]
[341898263,1731274239835,-500.0,0.00014796,2]
[341898264,1731274239845,-1901.61,0.00014796,2]
[341898265,1731274239854,-500.0,0.00014796,2]
[341898266,1731274239864,-826.91,0.00014796,2]
[341898267,1731274239874,-1065.43,0.00014796,2]
[341898268,1731274239886,-500.0,0.00014796,2]
[341898269,1731274239895,-537.01,0.00014796,2]
[341898270,1731274239905,-191.5213975,0.00014796,2]
[341898271,1731274239914,-1371.85,0.00014796,2]
[341898272,1731274239924,-638.62,0.00014796,2]
[341898273,1731274239933,-972.26,0.00014796,2]
[341898274,1731274239942,-500.0,0.00014796,2]
[341898275,1731274239951,-500.0,0.00014796,2]
[341898276,1731274239960,-500.0,0.00014796,2]
[341898277,1731274239970,-500.0,0.00014796,2]
[341898278,1731274239979,-500.0,0.00014796,2]
[341898279,1731274239989,-500.0,0.00014796,2]
[341898280,1731274239998,-500.0,0.00014796,2]
[341898281,1731274240008,-11492.57,0.00014796,2]
[341898282,1731274240017,-500.0,0.00014796,2]
[341898283,1731274240026,-500.0,0.00014796,2]
[341898284,1731274240035,-2257.47,0.00014796,2]
[341898285,1731274240045,-717.35,0.00014796,2]
[341898287,1731274240054,-500.0,0.00014796,2]
[341898288,1731274240063,-2266.27,0.00014796,2]
[341898289,1731274240072,-896.73,0.00014796,2]
[341898290,1731274240082,-2734.4,0.00014796,2]
[341898291,1731274240091,-4667.71,0.00014796,2]
[341898292,1731274240100,-5838.1,0.00014796,2]
[341898293,1731274240110,-2698.1,0.00014796,2]
[341898295,1731274240119,-1013.44,0.00014796,2]
[341898297,1731274240128,-727.0,0.00014796,2]
[341898299,1731274240139,-3698.93,0.00014796,2]
[341898300,1731274240148,-500.0,0.00014796,2]
[341898301,1731274240158,-4510.6,0.00014796,2]
[341898302,1731274240167,-5587.19,0.00014796,2]
[341898303,1731274240176,-500.0,0.00014796,2]
[341898304,1731274240185,-13493.38,0.00014796,2]
[341898305,1731274240194,-3373.24,0.00014796,2]
[341898306,1731274240203,-1256.09,0.00014796,2]
[341898307,1731274240212,-751.75,0.00014796,2]
[341898308,1731274240221,-2013.81,0.00014796,2]
[341898309,1731274240230,-11517.85,0.00014796,2]
[341898310,1731274240239,-500.0,0.00014796,2]
[341898311,1731274240248,-1847.78,0.00014796,2]
[341898312,1731274240257,-2742.25,0.00014796,2]
[341898313,1731274240266,-563.44,0.00014796,2]
[341898314,1731274240275,-3617.57,0.00014796,2]
[341898315,1731274240285,-1735.44,0.00014796,2]
[341898316,1731274240294,-720.66,0.00014796,2]
[341898317,1731274240303,-2675.19389398,0.00014796,2]
[341898318,1731274240318,-677.16610602,0.00014796,2]
[341898319,1731274240327,-500.0,0.00014796,2]
[341898320,1731274240336,-485.5441679,0.00014809,2]
[341898321,1731274240345,-307.66336668,0.00014829,2]
[341898322,1731274240355,-485.5441679,0.00014838,2]
[341898323,1731274240364,-15147.79,0.00014848,2]
[341898324,1731274240374,-500.0,0.00014848,2]
[341898325,1731274240383,-1274.7,0.00014848,2]
[341898326,1731274240395,-614.99,0.00014848,2]
[341898327,1731274240409,-14556.26,0.00014848,2]
[341898328,1731274240418,-14556.26,0.00014848,2]
[341898329,1731274240427,-14779.26,0.00014848,2]
[341898330,1731274240437,-507.79,0.00014848,2]
[341898331,1731274240447,-507.79,0.00014848,2]
[341898332,1731274240456,-500.0,0.00014848,2]
[341898333,1731274240465,-500.0,0.00014848,2]
[341898335,1731274240475,-266.62,0.00014848,2]
[341898337,1731274240486,-500.0,0.00014848,2]
[341898338,1731274240495,-500.0,0.00014848,2]
[341898340,1731274240504,-500.0,0.00014848,2]
[341898341,1731274240513,-500.0,0.00014848,2]
[341898342,1731274240523,-1051.67,0.00014848,2]
[341898343,1731274240532,-1867.13,0.00014848,2]
[341898344,1731274240541,-1867.13,0.00014848,2]
[341898345,1731274240550,-500.0,0.00014848,2]
[341898346,1731274240559,-500.0,0.00014848,2]
[341898347,1731274240568,-11053.11,0.00014848,2]
[341898348,1731274240577,-11053.11,0.00014848,2]
[341898349,1731274240586,-500.0,0.00014848,2]
[341898350,1731274240595,-732.85,0.00014848,2]
[341898351,1731274240604,-732.85,0.00014848,2]
[341898352,1731274240613,-500.0,0.00014848,2]
[341898353,1731274240622,-500.0,0.00014848,2]
[341898354,1731274240632,-500.0,0.00014848,2]
[341898355,1731274240643,-500.0,0.00014848,2]
[341898356,1731274240652,-500.0,0.00014848,2]
[341898357,1731274240661,-500.0,0.00014848,2]
[341898358,1731274240670,-500.0,0.00014848,2]
[341898359,1731274240680,-500.0,0.00014848,2]
[341898360,1731274240688,-1116.98,0.00014848,2]
[341898361,1731274240698,-1116.98,0.00014848,2]
[341898362,1731274240707,-2114.17,0.00014848,2]
[341898363,1731274240716,-500.0,0.00014848,2]
[341898364,1731274240726,-500.0,0.00014848,2]
[341898365,1731274240735,-565.51,0.00014848,2]
[341898366,1731274240745,-565.51,0.00014848,2]
[341898367,1731274240754,-2021.85,0.00014848,2]
[341898368,1731274240762,-2021.85,0.00014848,2]
[341898369,1731274240771,-500.0,0.00014848,2]
[341898370,1731274240781,-500.0,0.00014848,2]
[341898371,1731274240790,-500.0,0.00014848,2]
[341898372,1731274240800,-601.01,0.00014848,2]
[341898373,1731274240809,-601.01,0.00014848,2]
[341898374,1731274240818,-500.0,0.00014848,2]
[341898375,1731274240828,-500.0,0.00014848,2]
[341898376,1731274240837,-611.04,0.00014848,2]
[341898377,1731274240846,-611.04,0.00014848,2]
[341898378,1731274240855,-538.96,0.00014848,2]
[341898380,1731274240864,-538.96,0.00014848,2]
[341898382,1731274240874,-500.0,0.00014848,2]
[341898383,1731274240883,-500.0,0.00014848,2]
[341898384,1731274240893,-1133.57,0.00014848,2]
[341898385,1731274240902,-1133.57,0.00014848,2]
[341898386,1731274240912,-500.0,0.00014849,2]
[341898387,1731274240921,-500.0,0.00014849,2]
[341898388,1731274240931,-500.0,0.00014849,2]
[341898389,1731274240940,-500.0,0.00014849,2]
[341898390,1731274240949,-500.0,0.00014849,2]
[341898391,1731274240959,-500.0,0.00014849,2]
[341898392,1731274240968,-500.0,0.00014849,2]
[341898393,1731274240978,-500.0,0.00014849,2]
[341898394,1731274240988,-500.0,0.00014849,2]
[341898395,1731274240998,-642.34249716,0.00014849,2]
[341898396,1731274241007,-500.0,0.00014849,2]
[341898397,1731274241018,-636.57,0.00014849,2]
[341898398,1731274241028,-500.0,0.00014849,2]
[341898399,1731274241038,-500.0,0.00014849,2]
[341898400,1731274241048,-340.86,0.00014849,2]
[341898401,1731274241058,-103.95665848,0.00014849,2]
[341898402,1731274241071,-396.04334152,0.00014849,2]
[341898403,1731274241080,-500.0,0.00014849,2]
[341898404,1731274241090,-500.0,0.00014849,2]
[341898405,1731274241099,-500.0,0.00014849,2]
[341898406,1731274241108,-500.0,0.00014849,2]
[341898407,1731274241118,-452.77918075,0.00014849,2]
[341898408,1731274241130,-47.22081925,0.00014849,2]
[341898409,1731274241142,-500.0,0.00014849,2]
[341898410,1731274241152,-244.29418075,0.00014849,2]
[341898411,1731274241178,-255.70581925,0.00014849,2]
[341898412,1731274241187,-500.0,0.00014849,2]
[341898413,1731274241196,-500.0,0.00014849,2]
[341898414,1731274241205,-500.0,0.00014849,2]
[341898415,1731274241215,-358.87030743,0.00014849,2]
[341898416,1731274241224,-690.34,0.00014849,2]
[341898417,1731274241233,-690.34,0.00014849,2]
[341898418,1731274241243,-690.34,0.00014849,2]
[341898419,1731274241252,-690.34,0.00014849,2]
[341898420,1731274241262,-690.34,0.00014849,2]
[341898421,1731274241271,-1020.52,0.00014849,2]
[341898422,1731274241280,-892.41340602,0.00014849,2]
[341898423,1731274241317,-128.10659398,0.00014849,2]
[341898424,1731274241326,-667.08401093,0.00014849,2]
[341898425,1731274241337,-353.43598907,0.00014849,2]
[341898426,1731274241346,-54.57260953,0.00014849,2]
[341898427,1731274241358,-591.9914014,0.00014849,2]
[341898428,1731274241368,-373.95598907,0.00014849,2]
[341898429,1731274241378,-841.32905782,0.00014849,2]
[341898430,1731274241609,-179.19094218,0.00014849,2]
[341898431,1731274241618,-1601.37,0.00014849,2]
[341898432,1731274241627,-1601.37,0.00014849,2]
[341898433,1731274241639,-547.47635193,0.00014849,2]
[341898434,1731274241650,-950.67042841,0.00014849,2]
[341898435,1731274241661,-103.22321966,0.00014849,2]
[341898436,1731274241670,-403.81122853,0.00014849,2]
[341898437,1731274241682,-1064.53555181,0.00014849,2]
[341898438,1731274241693,-133.02321966,0.00014849,2]
[341898439,1731274241702,-1601.37,0.00014849,2]
[341898440,1731274241711,-719.69,0.00014849,2]
[341898441,1731274241720,-719.69,0.00014849,2]
[341898442,1731274241729,-719.69,0.00014849,2]
[341898443,1731274241738,-75.35858034,0.00014849,2]
[341898444,1731274241749,-606.0,0.00014849,2]
[341898445,1731274241760,-38.33141966,0.00014849,2]
[341898446,1731274241769,-658.73786325,0.00014849,2]
[341898447,1731274241788,-60.95213675,0.00014849,2]
[341898448,1731274241797,-500.0,0.00014849,2]
[341898449,1731274241806,-500.0,0.00014849,2]
[341898450,1731274241815,-500.0,0.00014849,2]
[341898451,1731274241826,-500.0,0.00014849,2]
[341898452,1731274241835,-500.0,0.00014849,2]
[341898453,1731274241844,-546.64,0.00014849,2]
[341898454,1731274241853,-546.64,0.00014849,2]
[341898455,1731274241862,-546.64,0.00014849,2]
[341898456,1731274241871,-546.64,0.00014849,2]
[341898457,1731274241880,-546.64,0.00014849,2]
[341898458,1731274241894,-919.75,0.00014849,2]
[341898459,1731274241903,-79.58506325,0.00014849,2]
[341898460,1731274241915,-840.16493675,0.00014849,2]
[341898461,1731274241924,-919.75,0.00014849,2]
[341898462,1731274241933,-919.75,0.00014849,2]
[341898463,1731274241942,-919.75,0.00014849,2]
[341898464,1731274241952,-500.0,0.00014849,2]
[341898465,1731274241961,-500.0,0.00014849,2]
[341898466,1731274241970,-500.0,0.00014849,2]
[341898467,1731274241979,-500.0,0.00014849,2]
[341898468,1731274241988,-500.0,0.00014849,2]
[341898469,1731274241997,-500.0,0.00014849,2]
[341898470,1731274242006,-500.0,0.00014849,2]
[341898471,1731274242015,-500.0,0.00014849,2]
[341898472,1731274242025,-16.31450475,0.00014849,2]
[341898473,1731274242036,-483.68549525,0.00014849,2]
[341898474,1731274242045,-500.0,0.00014849,2]
[341898475,1731274242055,-140.16468789,0.00014849,2]
[341898476,1731274242066,-397.80500001,0.00014849,2]
[341898477,1731274242077,-1348.2303121,0.00014849,2]
[341898478,1731274242086,-920.08468795,0.00014849,2]
[341898479,1731274242098,-966.11531205,0.00014849,2]
[341898480,1731274242107,-1886.2,0.00014849,2]
[341898481,1731274242116,-700.69,0.00014849,2]
[341898482,1731274242125,-372.19468795,0.00014849,2]
[341898483,1731274242140,-1514.00531205,0.00014849,2]
[341898484,1731274242149,-700.69,0.00014849,2]
[341898485,1731274242158,-1886.2,0.00014849,2]
[341898486,1731274242167,-700.69,0.00014849,2]
[341898487,1731274242176,-700.69,0.00014849,2]
[341898488,1731274242185,-500.0,0.00014849,2]
[341898489,1731274242194,-700.69,0.00014849,2]
[341898490,1731274242203,-338.20126576,0.00014849,2]
[341898491,1731274242212,-500.0,0.00014849,2]
[341898492,1731274242221,-500.0,0.00014849,2]
[341898493,1731274242230,-500.0,0.00014849,2]
[341898494,1731274242239,-500.0,0.00014849,2]
[341898495,1731274242249,-500.0,0.00014849,2]
[341898496,1731274242258,-500.0,0.00014849,2]
[341898497,1731274242267,-434.75491843,0.00014849,2]
[341898498,1731274242278,-65.24508157,0.00014849,2]
[341898499,1731274242287,-500.0,0.00014849,2]
[341898500,1731274242297,-222.68262843,0.00014849,2]
[341898501,1731274242308,-277.31737157,0.00014849,2]
[341898502,1731274242317,-500.0,0.00014849,2]
[341898503,1731274242326,-99.49714054,0.00014849,2]
[341898504,1731274242337,-1999.33285946,0.00014849,2]
[341898505,1731274242346,-2098.83,0.00014849,2]
[341898506,1731274242355,-2098.83,0.00014849,2]
[341898507,1731274242364,-2098.83,0.00014849,2]
[341898508,1731274242374,-2098.83,0.00014849,2]
[341898509,1731274242383,-730.53,0.00014849,2]
[341898510,1731274242393,-730.53,0.00014849,2]
[341898511,1731274242626,-730.53,0.00014849,2]
[341898512,1731274242638,-730.53,0.00014849,2]
[341898513,1731274242651,-730.53,0.00014849,2]
[341898514,1731274242660,-161.931501,0.00014849,2]
[341898515,1731274242669,-161.931501,0.00014849,2]
[341898516,1731274242679,-571.86,0.00014849,2]
[341898517,1731274242688,-571.86,0.00014849,2]
[341898518,1731274242698,-571.86,0.00014849,2]
[341898519,1731274242708,-571.86,0.00014849,2]
[341898520,1731274242717,-571.86,0.00014849,2]
[341898521,1731274242727,-1270.4,0.00014849,2]
[341898522,1731274242736,-1270.4,0.00014849,2]
[341898523,1731274242745,-228.73413854,0.00014849,2]
[341898524,1731274242757,-621.06826935,0.00014849,2]
[341898525,1731274242769,-420.59759211,0.00014849,2]
[341898526,1731274242779,-1270.4,0.00014849,2]
[341898527,1731274242788,-1270.4,0.00014849,2]
[341898528,1731274242798,-500.0,0.00014849,2]
[341898529,1731274242808,-500.0,0.00014849,2]
[341898530,1731274242818,-500.0,0.00014849,2]